Cogmind - Beta 16.1 @@@ ROGUE MODE // 2026.04.07 @ 12:34:29 Player: Lyft Result: Destroyed by G-34 Mercenary with Small Laser Performance ------------- Evolutions (0) 0 Regions Visited (4) 800 Robots Destroyed (42) 210 Value Destroyed (658) 658 Prototype IDs (23) 460 Alien Tech Used (0) 0 Bonus (300) 300 TOTAL SCORE: 2428 Bonus ------- Aligned with FarCom 300 Cogmind --------- Core Integrity 0/250 Matter 255/300 Energy 250/250 System Corruption 0% Temperature Cool (6) Movement Treading (160) Location -9/Mines Parts ------- > --- POWER (1) -------- Ion Engine > --- PROPULSION (2) --- Light Treads Light Treads > --- UTILITY (2) ------ Large Storage Unit Core Shielding > --- WEAPON (2) ------- Assault Rifle > --- INVENTORY (15) --- Ion Engine Light Treads Light Treads Heat Sink Improved Heat Sink Large Storage Unit Structural Scanner Signal Interpreter Seismic Detector Transport Network Coupler ECM Suite Trap Reconfigurator Mining Claw Shock Trap Peak State ------------ > --- POWER ------------ Ion Engine > --- PROPULSION ------- Light Treads Light Treads > --- UTILITY ---------- Improved Heat Sink Large Storage Unit > --- WEAPON ----------- EM Shotgun Assault Rifle > --- INVENTORY -------- Ion Engine Wheel Heat Sink Large Storage Unit Structural Scanner Seismic Detector ECM Suite Assault Rifle Assault Rifle Mining Laser [Rating: 11] Favorites ----------- Power Ion Engine Engine Ion Engine Propulsion Light Treads Treads Light Treads Leg Aluminum Leg Wheel Wheel Utility Large Storage Unit Device Improved Heat Sink Storage Large Storage Unit Protection Propulsion Shielding Weapon Assault Rifle Energy Gun EM Shotgun Ballistic Gun Assault Rifle Special Weapon Mining Laser Build | -11 -10 -10 -10 -9 ------- Run | Yrd Mat Min Exi Min Slots Evolved . | . . . . . Power . | . . . . . Propulsion . | . . . . . Utility . | . . . . . Weapon . | . . . . . Parts Attached 21 | 4 12 3 . 2 Power 1 | . 1 . . . Engine 1 | . 1 . . . Core . | . . . . . Reactor . | . . . . . Propulsion 7 | 2 3 1 . 1 Treads 5 | 1 2 1 . 1 Leg . | . . . . . Wheel 2 | 1 1 . . . Hover . | . . . . . Flight . | . . . . . Utility 5 | 1 3 . . 1 Device 2 | 1 1 . . . Storage 1 | . 1 . . . Processor . | . . . . . Hackware . | . . . . . Protection 2 | . 1 . . 1 Artifact . | . . . . . Weapon 8 | 1 5 2 . . Energy Gun 4 | 1 3 . . . Energy Cannon . | . . . . . Ballistic Gun 3 | . 2 1 . . Ballistic Cannon . | . . . . . Launcher . | . . . . . Special Weapon 1 | . . 1 . . Impact Weapon . | . . . . . Slashing Weapon . | . . . . . Piercing Weapon . | . . . . . Special Melee Weapon . | . . . . . Unidentified Prototypes . | . . . . . Parts Lost 9 | . 5 3 . 1 Power 1 | . 1 . . . Propulsion 2 | . 1 1 . . Utility . | . . . . . Weapon 6 | . 3 2 . 1 Highest Loss Streak 5 | . 5 2 . 1 To Critical Strikes . | . . . . . Average Backups 11 | 5 10 12 12 13 Power . | 1 . 1 1 1 Propulsion 2 | 2 2 3 3 2 Utility 5 | . 4 6 7 8 Weapon 1 | 1 2 1 1 1 Tool/Special . | . . . . . Unused Backups 17 | . 6 . . 11 Power 1 | . . . . 1 Propulsion 3 | . 1 . . 2 Utility 10 | . 3 . . 7 Weapon 3 | . 2 . . 1 Tool/Special . | . . . . . Average Slot Usage (%) 96 | . 98 93 100 99 Engine 14 | . 14 14 14 14 Treads 20 | . 19 18 28 28 Wheel 4 | . 8 3 . . Device 10 | . 8 14 14 1 Storage 14 | . 14 14 14 14 Protection 3 | . 5 . . 13 Energy Gun 7 | . 17 2 . . Ballistic Gun 12 | . 9 14 14 14 Special Weapon 7 | . . 10 14 13 Peak Build Rating 11 | 7 11 11 11 11 Average Rating 9 | 6 9 9 10 9 On Entrance 9 | 6 7 11 10 11 Avg Prop Armor Cover (%) 11 | 13 12 11 . . Naked Turns . | . . . . . Heaviest Build 31 | 15 31 31 29 29 Greatest Support 40 | 20 40 40 40 40 Greatest Overweight (x) 3 | 1 3 3 . . Average Overweight (x) 1 | . 1 1 . . Largest Inventory Capacity 15 | 8 15 15 15 15 Average Capacity 14 | 8 14 15 15 15 Most Carried 15 | 7 15 14 13 15 Average Carried 11 | 5 10 12 12 14 Final Capacity 15 | 8 15 15 15 15 Final Carried 14 | 4 13 12 13 14 Class Distribution -------------------- 100% | Mutant Dominant Class ---------------- Mutant | -10/Materials Mutant | -10/Mines Mutant | -10/Exiles Mutant | -9/Mines Resources | -11 -10 -10 -10 -9 ----------- Run | Yrd Mat Min Exi Min Matter Collected 563 | 240 224 86 . 13 Remotely . | . . . . . Salvage Created 1155 | 231 726 108 . 90 Parts 90 | 18 50 16 . 6 Haulers Intercepted 1 | . 1 . . . Recyclers Shooed 2 | . 1 1 . . Parts Field Recycled . | . . . . . Retrieved Matter . | . . . . . Parts Self-Destructed . | . . . . . Prevented . | . . . . . Parts Restored . | . . . . . Kills | -11 -10 -10 -10 -9 ------- Run | Yrd Mat Min Exi Min Combat Hostiles Destroyed 24 | . 15 6 . 3 Guns 21 | . 15 5 . 1 Cannons 2 | . . . . 2 AOE 1 | . . 1 . . Classes Destroyed 10 | 3 5 . . 2 Worker 6 | 2 4 . . . Builder 4 | . 4 . . . Tunneler 6 | 6 . . . . Hauler 1 | . 1 . . . Recycler 1 | 1 . . . . Watcher 1 | . 1 . . . Swarmer 11 | . 6 5 . . Grunt 10 | . 9 1 . . Sentry 2 | . . . . 2 Assembled 1 | . . . . 1 Best Kill Streak 6 | 6 6 3 . 2 Combat Bots Only 3 | . 3 3 . 2 Max Kills in Single Turn 1 | 1 1 1 . 1 Gunslinging . | . . . . . Exploded 1 | . . 1 . . Melee . | . . . . . Uniques/NPCs Destroyed . | . . . . . Combat | -11 -10 -10 -10 -9 -------- Run | Yrd Mat Min Exi Min Hostile Shots Fired 162 | . 97 40 . 25 Missed 41 | . 24 9 . 8 Hits 121 | . 73 31 . 17 Projectile 121 | . 73 31 . 17 Critical Strikes 1 | . . . . 1 Damage Taken 1387 | . 838 309 . 240 Core 251 | . 175 68 . 8 Absorbed by Shields . | . . . . . Redirected to Shielding 38 | . 36 . . 2 Core Remaining (%) 100 | 100 . . . . Volleys Fired 109 | 23 56 20 . 10 Largest 2 | 2 2 2 . 2 Hottest 120 | 90 100 120 . 120 Shots Fired 204 | 46 107 38 . 13 Gun 198 | 46 107 35 . 10 Cannon . | . . . . . Launcher . | . . . . . Special 6 | . . 3 . 3 Kinetic 80 | . 42 28 . 10 Thermal 78 | 46 26 3 . 3 Explosive . | . . . . . Electromagnetic 46 | . 39 7 . . Robot Hit Streak 18 | 9 18 5 . 5 Robot Miss Streak 6 | 2 6 3 . 3 Penetration Max . | . . . . . Secondary Targets 5 | . 4 1 . . Max Gunslinging Chain 1 | . 1 1 . . Shots Hit Robots 134 | 31 72 22 . 9 Core Hits 67 | 10 44 9 . 4 Critical Kills . | . . . . . Critical Parts Destroyed 1 | . 1 . . . Critical Strikes 4 | 2 2 . . . Burn 3 | 2 1 . . . Destroy 1 | . 1 . . . Melee Attacks . | . . . . . Impact . | . . . . . Slashing . | . . . . . Piercing . | . . . . . Sneak Attacks . | . . . . . Combat Hostiles . | . . . . . Follow-up Attacks . | . . . . . Damage Inflicted 2108 | 367 1242 370 . 129 Guns 1773 | 367 1026 299 . 81 Cannons . | . . . . . Explosions 283 | . 212 71 . . Melee . | . . . . . Ramming 4 | . 4 . . . Kinetic 607 | . 275 251 . 81 Thermal 922 | 367 436 71 . 48 Explosive . | . . . . . Electromagnetic 575 | . 527 48 . . Impact . | . . . . . Slashing . | . . . . . Piercing . | . . . . . Highest Corruption . | . . . . . Average Corruption . | . . . . . Corruption Purged . | . . . . . Corruption Blocked . | . . . . . Overload Shots . | . . . . . Overflow Damage 1 | . . 1 . . Projectiles . | . . . . . Explosions 1 | . . 1 . . Melee . | . . . . . Knockbacks . | . . . . . Impact . | . . . . . Kinetic . | . . . . . Secondary . | . . . . . Self-Inflicted Damage 38 | . 38 . . . Shots 1 | . 1 . . . Rammed 1 | . 1 . . . Targets Rammed 1 | . 1 . . . Kicked . | . . . . . Crushed . | . . . . . Highest Temperature 270 | 140 270 . . 76 Average Temperature 68 | 56 83 . . 31 Received Heat Transfer 519 | . 363 72 . 84 Siege Activations . | . . . . . Martial Activations . | . . . . . Shielding Activations . | . . . . . Robots Disrupted . | . . . . . Combat Hostiles . | . . . . . Robots Corrupted . | . . . . . Combat Hostiles . | . . . . . Parts Fried . | . . . . . Impact Corruptions . | . . . . . Robots Melted . | . . . . . Combat Hostiles . | . . . . . Parts Melted 7 | 3 4 . . . Heat Transferred 2256 | 1103 1003 50 . 100 Parts Sabotaged . | . . . . . Parts Stolen . | . . . . . Parts Stripped . | . . . . . Power Chain Reactions 4 | . 3 1 . . Alert | -11 -10 -10 -10 -9 ------- Run | Yrd Mat Min Exi Min Maximum Alert Level . | . . . . . Low Security (%) 100 | 100 100 100 . 100 Level 1 . | . . . . . Level 2 . | . . . . . Level 3 . | . . . . . Level 4 . | . . . . . Level 5 . | . . . . . High Security . | . . . . . Max Security . | . . . . . Peak Influence 189 | 10 189 62 . 20 Initial 46 | . . 46 . . Average 47 | 1 115 8 . 2 Influence Increases 842 | 45 597 144 . 56 Destroy 0b10 Robot/C 460 | . 300 120 . 40 Destroy 0b10 Robot/NC 95 | 45 50 . . . Destroy Leader 84 | . 64 20 . . Successful Hack 21 | . 21 . . . Select Force Hacks 60 | . 60 . . . Destroy Structure 17 | . 12 4 . 1 Lose Combat Pursuer 105 | . 90 . . 15 Influence Decreases 822 | 45 476 265 . 36 Entered New Map 75 | . . 75 . . Time Decay 647 | 45 416 160 . 26 Lost Part 90 | . 50 30 . 10 Lost Ally 10 | . 10 . . . Squads Dispatched 2 | . 2 . . . Investigation 2 | . 2 . . . Extermination . | . . . . . Reinforcement . | . . . . . Assault . | . . . . . Garrison . | . . . . . Intercept . | . . . . . Searches Triggered . | . . . . . Construction Impeded . | . . . . . Haulers Reinforced . | . . . . . Active Scanning Responses . | . . . . . Cargo Convoy Interrupts . | . . . . . Stealth | -11 -10 -10 -10 -9 --------- Run | Yrd Mat Min Exi Min Distress Signals 1 | . 1 . . . Communications Jammed . | . . . . . Distress Signals . | . . . . . Times Spotted 42 | . 28 8 . 6 Peak Tracking Total 7 | . 7 3 . 3 Tactical Retreats 4 | . 3 . . 1 Traps | -11 -10 -10 -10 -9 ------- Run | Yrd Mat Min Exi Min Traps Triggered . | . . . . . Indirectly . | . . . . . Trap Hack Attempts . | . . . . . Triggered . | . . . . . Disarmed . | . . . . . Reprogrammed . | . . . . . Reused . | . . . . . Traps Extracted . | . . . . . Installed . | . . . . . Triggered . | . . . . . Most Traps Carried 1 | . . . . 1 Machines | -11 -10 -10 -10 -9 ---------- Run | Yrd Mat Min Exi Min Machines Disabled 1 | . 1 . . . Max in Single Turn 1 | . 1 . . . Machines Repaired . | . . . . . Machines Dismantled . | . . . . . Machines Sabotaged . | . . . . . Overloaded Fab Kills . | . . . . . Hacking | -11 -10 -10 -10 -9 --------- Run | Yrd Mat Min Exi Min Machines Accessed 9 | . 7 . 2 . Terminals 5 | . 5 . . . Fabricators . | . . . . . Repair Stations . | . . . . . Recycling Units 2 | . 2 . . . Scanalyzers . | . . . . . Garrison Access . | . . . . . Total Hacks 20 | . 18 . 2 . Successful 11 | . 9 . 2 . Failed 9 | . 9 . . . Catastrophic . | . . . . . Database Lockouts . | . . . . . Manual 13 | . 12 . 1 . Terminals 13 | . 13 . . . Fabricators . | . . . . . Repair Stations . | . . . . . Recycling Units 5 | . 5 . . . Scanalyzers . | . . . . . Garrison Access . | . . . . . Terminal Hacks 3 | . 1 . 2 . Record 1 | . . . 1 . Robot Analysis 1 | . 1 . . . Proto ID Catalog 1 | . . . 1 . Fabricator Hacks . | . . . . . Repair Station Hacks . | . . . . . Recycling Unit Hacks 2 | . 2 . . . Report Inventory 1 | . 1 . . . Retrieve Components 1 | . 1 . . . Scanalyzer . | . . . . . Garrison Access Hacks . | . . . . . Unauthorized Hacks 6 | . 6 . . . Terminals 4 | . 4 . . . Assimilate 1 | . 1 . . . Botnet 2 | . 2 . . . Operators 1 | . 1 . . . Fabricators . | . . . . . Repair Stations . | . . . . . Recycling Units 2 | . 2 . . . Tunnel 2 | . 2 . . . Scanalyzers . | . . . . . Garrison Access . | . . . . . Data Cores Recovered . | . . . . . Used . | . . . . . Hacking Detections 4 | . 4 . . . Full Trace Events 1 | . 1 . . . Feedback Events . | . . . . . Feedback Blocked . | . . . . . Robot Schematics Acquired . | . . . . . Robots Built . | . . . . . Authchips . | . . . . . Time . | . . . . . Total Robot Build Rating . | . . . . . Part Schematics Acquired . | . . . . . Parts Built . | . . . . . Authchips . | . . . . . Time . | . . . . . Total Part Build Rating . | . . . . . Part Studies Acquired . | . . . . . Parts Repaired . | . . . . . Time . | . . . . . Parts Recycled . | . . . . . Recycled Matter . | . . . . . Retrieved Matter . | . . . . . Retrieved Components 1 | . 1 . . . Parts Scanalyzed . | . . . . . Part Schematics Acquired . | . . . . . Parts Damaged . | . . . . . Bothacking | -11 -10 -10 -10 -9 ------------ Run | Yrd Mat Min Exi Min Used RIF Installer . | . . . . . Robots Hacked . | . . . . . Non-combat . | . . . . . Combat . | . . . . . Robot Hacks Applied . | . . . . . Relay Couplers Released . | . . . . . Fabnet Peak Effective % . | . . . . . Robots Rewired . | . . . . . Allies Hacked . | . . . . . Hacks Repelled . | . . . . . Allies | -11 -10 -10 -10 -9 -------- Run | Yrd Mat Min Exi Min Total Allies 1 | . 1 . . . Largest Group 1 | . 1 . . . Highest-Rated Group 10 | . 10 . . . Highest-Rated Ally 10 | . 10 . . . Total Orders . | . . . . . Ally Attacks . | . . . . . Total Damage . | . . . . . Kills . | . . . . . Allies Corrupted . | . . . . . Allies Melted . | . . . . . Intel | -11 -10 -10 -10 -9 ------- Run | Yrd Mat Min Exi Min Active Infowar (turns) 164 | 11 153 . . . Seismic 164 | 11 153 . . . Robot Analysis Total 1 | . 1 . . . Derelict Logs Recovered 1 | . . 1 . . Drone Launches . | . . . . . Drone Recoveries . | . . . . . Exploration | -11 -10 -10 -10 -9 ------------- Run | Yrd Mat Min Exi Min Turns Passed 3240 | 253 1083 1286 352 266 Spaces Moved 1716 | 87 590 679 220 140 Core . | . . . . . Treads 1043 | . 208 475 220 140 Legs 30 | 30 . . . . Wheels 643 | 57 382 204 . . Hover . | . . . . . Flight . | . . . . . Fastest Speed 95 | 95 95 110 160 160 Average Speed 153 | 103 130 175 160 160 Slowest Speed 240 | 120 160 240 160 160 Overloaded Moves . | . . . . . Propulsion Burnouts . | . . . . . Robots Hopped . | . . . . . Potential Cave-ins . | . . . . . Cave-ins Triggered . | . . . . . Exploration Rate (%) 59 | 4 91 99 59 43 Regions Visited 4 Branch Regions 3 Pre-discovered Areas 3 | . 2 . 1 . Known Exits Taken . | . . . . . Unknown Exits Taken 4 | 1 1 1 1 . Scrap Searched 4 | . . 3 . 1 Spaces Dug . | . . . . . Terrain Destroyed 14 | . 9 4 . 1 Melee . | . . . . . Projectile 3 | . . 2 . 1 AOE 11 | . 9 2 . . Terrain Rammed . | . . . . . Walls Destroyed . | . . . . . Machines Disabled . | . . . . . Actions | -11 -10 -10 -10 -9 --------- Run | Yrd Mat Min Exi Min Total 2111 | 204 795 729 220 163 Wait 223 | 86 105 26 . 6 Move 1712 | 86 589 678 219 140 Hop . | . . . . . Pick Up 31 | 2 23 2 1 3 Fast Attach . | . . . . . Attach 15 | 3 9 3 . . Detach . | . . . . . Swap 6 | 1 3 . . 2 Drop 14 | 3 9 . . 2 Fire 109 | 23 56 20 . 10 Melee . | . . . . . Ram . | . . . . . Kick . | . . . . . Crush 1 | . 1 . . . Escape Stasis . | . . . . . Rewire . | . . . . . Trap . | . . . . . Miscellaneous . | . . . . . Route ------- -11/Scrapyard -10/Materials (discovered 4 exits: [*Mat x2] / [*Min x2]) -10/Mines (discovered 4 exits: [*Mat x2] / *Exi / [*Sub]) -10/Exiles -9/Mines (discovered 1 exit: [*Mat]) History --------- Turn | Location | Event 1 | -11/Scrapyard | Discovered new exit (range 3) 254 | -11/Scrapyard | Entered Materials 303 | -10/Materials | Build established: Mutant 475 | -10/Materials | Discovered new exit (range 10) 707 | -10/Materials | Discovered new exit (range 8) 787 | -10/Materials | Discovered new exit (range 11) 846 | -10/Materials | Core integrity fell below 50% 909 | -10/Materials | Lost 5 parts (1p1n3w) 1174 | -10/Materials | Discovered new exit (range 5) 1337 | -10/Materials | Entered Mines 1554 | -10/Mines | Core integrity fell below 20% 1813 | -10/Mines | Discovered new exit (range 13) 2247 | -10/Mines | Discovered new exit (range 11) 2317 | -10/Mines | Discovered new exit (range 4) 2615 | -10/Mines | Deemed a non-threat by the Exiles lab entrance 2617 | -10/Mines | Discovered new exit (range 5) 2623 | -10/Mines | Entered Exiles 2662 | -10/Exiles | Met 8R-AWN 2691 | -10/Exiles | Met EX-HEX 2739 | -10/Exiles | Met EX-BIN 2756 | -10/Exiles | Aligned with FarCom system 2758 | -10/Exiles | Given EX-Vault access code 2795 | -10/Exiles | Opened EX-Vault 2806 | -10/Exiles | Found Trap Reconfigurator 2836 | -10/Exiles | Warned to stay clear of 0b10 Research branches 2884 | -10/Exiles | Met EX-DEC 2893 | -10/Exiles | Learned location of Zion (-7) 2943 | -10/Exiles | Discovered new exit (range 12) 2975 | -10/Exiles | Left Exiles lab with Trap Reconfigurator 2975 | -10/Exiles | Entered Mines 3070 | -9/Mines | Assembled infested the area 3078 | -9/Mines | Found a hidden stash of uninstalled traps 3185 | -9/Mines | Discovered new exit (range 5) 3241 | -9/Mines | Destroyed by G-34 Mercenary with Small Laser Last Messages --------------- 03078_ A stash of uninstalled traps is collected here! 03083_ Dropped Lgt. Treads. 03084_ Acquired Shock Trap. 03090_ K-01 Serf collects debris. 03118_ as-32628 destroyed. 03121_ K-01 Serf collects debris. 03126_ as-68654 destroyed. 03128_ The unstable cave ceiling collapses. 03128_ K-01 Serf collects debris. 03131_ The unstable cave ceiling collapses. 03131_ K-01 Serf collects debris. 03135_ The unstable cave ceiling collapses. 03138_ K-01 Serf collects debris. 03185_ EXIT=FOUND 03209_ K-01 Serf collects debris. 03219_ Y-45 Defender destroyed. 03232_ Mining Laser destroyed. 03235_ Critical hit (Burn: +37). 03236_ Y-45 Defender destroyed. Map ----- +----------------------------------------------------+ | | | | | | | | | | | | | | | | | | | | | | | | | | | ?????????????????????????????????????????????????? | | ?????????????????????????????????????????????????? | | ?????????????????????????????????????????????????? | | ?????????????????????????????????????????????????? | | ??????????????????????????????????????????????#### | | ??????????????????????????????????????######### | | ??????????????????????????????????????# | | ?????????????????????######???????????# | | ????????????????????##"!!"##??????????# ###### | | ????????????????????#""!!""#??????????# #????## | | ??????????g??l??????# #??????????# #?????## | | ?????????????????????#=%% #???????????# ###????## | | ????????????????????###//@##??????????# ##????# | | ????????????????????# [!=* #?????????## #???## | | ????????????????????# ###???????# ##### | | ????????????????????# #???????# | | ????????????????????# #???????## | | ????????????????????# #????????# ### | | ????????????????????# #????????# ##?## | | ??????????????????#?# #???????## ##??# | | ?????????????????## #g #?????### #### | | ?????????????????# #????## | | ?????????????????# #????# | | ?????????????????# ## < #???## | | ?????????????????# ?# t #??## ## | | ?????????????????#??# #??# ####?## | | ????????????????????# #??# ##?????? | | ????????????????????####### ##??## ## ###??????? | | ??????????????????????????# #????## ## #????????? | | ??????????????????????????# #?????# ## #????????? | | ??????????????????????????# ####### ## ####?????? | | ??????????????????????????# ##????? | | ??????????????????????????# ##???? | | ??????????????????????????######### ##??? | | ??????????????????????????????????# ##?? | | ??????????????????????????????????# ##? | | ??????????????????????????????????## #? | +----------------------------------------------------+ Best States ------------- Heat Dissipation 39 Energy Generation 10 Energy Capacity 250 Matter Stores 300 Matter Capacity 300 Sight Range 16 Terrain Scan Density 10 Core Shielding 20 Propulsion Shielding 33 Evasion (%) 55 Recoil Reduction 2 Item Schematics ----------------- None Robot Schematics ------------------ None Fabricated ------------ Nothing Repaired ---------- Nothing Studied --------- None Alien Tech Used ----------------- None Achievements -------------- None Challenges ------------ None Game ------ Seed BraceCompactPropulsion Manual? 0 Play Time 00:20:20 Cumulative 68.8 hours Start 2026.04.07 @ 12:15:35 End 2026.04.07 @ 12:34:29 Sessions 1 Manual Loads 0 Difficulty Rogue Special Mode None Game No. 59 Rogue 49 Adventurer 9 Explorer 1 Win Type - Total 0 Types 0/0/0/0/0/0/0/0/0/0 Lore% 37 Gallery% 34 Achievement% 27 Wizard Run 0 Options --------- Layout 2 ASCII 0 Keyboard 0 Movement Mouse Keybinds 0 Fullscreen 1 Font 48/Terminus Map View 50x44 Zoom Use 0% Tactical HUD 1 Map Filters NONE Filters NONE Steam 1 RUN: 788af216-36da-4b7c-8188-efe48a04d8b0